bitfinex/quotes_BTCUSD_20240811
["timestamp","ask_amount","ask_price","bid_price","bid_amount"]
[1723350826618,0.142231,61166.0,61165.0,1.52176747]
[1723350827389,0.142231,61166.0,61165.0,1.44146747]
[1723350827707,0.142231,61166.0,61165.0,1.52176747]
[1723350828760,0.142231,61166.0,61165.0,1.17322592]
[1723350828962,0.142231,61166.0,61165.0,1.52175895]
[1723350830607,0.142231,61166.0,61165.0,1.29007821]
[1723350830797,0.142231,61166.0,61165.0,1.5712318]
[1723350830998,0.142231,61166.0,61165.0,1.40154569]
[1723350831231,0.142231,61166.0,61165.0,1.57123123]
[1723350831841,0.142231,61166.0,61165.0,1.52225338]
[1723350832251,0.142231,61166.0,61165.0,1.62020909]
[1723350832981,0.142231,61166.0,61165.0,1.52225338]
[1723350833189,0.142231,61166.0,61165.0,1.62453935]
[1723350833573,0.000831,61166.0,61165.0,1.74698399]
[1723350833803,0.000831,61166.0,61165.0,1.62453935]
[1723350835805,0.000831,61166.0,61165.0,1.76866665]
[1723350837716,0.000831,61166.0,61165.0,1.27551189]
[1723350837916,0.000831,61166.0,61165.0,1.76985863]
[1723350840004,0.000831,61166.0,61165.0,1.75585863]
[1723350840313,0.000831,61166.0,61165.0,1.76985863]
[1723350840921,0.000831,61166.0,61165.0,1.49905386]
[1723350841116,0.000831,61166.0,61165.0,1.74174858]
[1723350841372,0.000831,61166.0,61165.0,1.76974858]
[1723350841696,0.000831,61166.0,61165.0,1.75574858]
[1723350842215,0.000831,61166.0,61165.0,1.76974858]
[1723350844028,0.000831,61166.0,61165.0,1.76960628]
[1723350847040,0.000831,61166.0,61165.0,1.74758547]
[1723350847492,0.000831,61166.0,61165.0,1.89217815]
[1723350848049,0.140331,61166.0,61165.0,1.81187815]
[1723350848254,0.140331,61166.0,61165.0,1.89217815]
[1723350848449,0.140331,61166.0,61165.0,1.76960628]
[1723350848654,0.140331,61166.0,61165.0,1.74760043]
[1723350849520,0.140331,61166.0,61165.0,1.76960628]
[1723350851552,0.078931,61166.0,61165.0,1.76960628]
[1723350851677,0.078931,61166.0,61165.0,1.59993344]
[1723350851878,0.078931,61166.0,61165.0,1.76957552]
[1723350852504,0.078931,61166.0,61165.0,1.62500237]
[1723350853555,0.078931,61166.0,61165.0,1.76957552]
[1723350854182,0.078931,61166.0,61165.0,1.62500237]
[1723350854377,0.078931,61166.0,61165.0,1.62497392]
[1723350854583,0.078931,61166.0,61165.0,1.76951997]
[1723350855325,0.078931,61166.0,61165.0,1.62497392]
[1723350855465,0.078931,61166.0,61165.0,1.76951997]
[1723350858098,0.000831,61166.0,61165.0,1.99840897]
[1723350858300,0.000831,61166.0,61165.0,1.76951997]
[1723350858687,0.000831,61166.0,61165.0,1.99883501]
[1723350858885,0.000831,61166.0,61165.0,2.02183501]
[1723350859450,0.000831,61166.0,61165.0,2.16899916]
[1723350860491,0.000831,61166.0,61165.0,2.02183501]
[1723350860915,0.000831,61166.0,61165.0,2.00983501]
[1723350861121,0.000831,61166.0,61165.0,2.15699916]
[1723350861545,0.000831,61166.0,61165.0,2.14299916]
[1723350861758,0.000831,61166.0,61165.0,2.15699916]
[1723350861955,0.000831,61166.0,61165.0,2.17099916]
[1723350862157,0.000831,61166.0,61165.0,2.15699916]
[1723350862356,0.000831,61166.0,61165.0,2.15699703]
[1723350862608,0.000831,61166.0,61165.0,2.16899703]
[1723350862807,0.000831,61166.0,61165.0,2.16893606]
[1723350863577,0.000831,61166.0,61165.0,2.17337191]
[1723350863918,0.000831,61166.0,61165.0,2.16137191]
[1723350864481,0.000831,61166.0,61165.0,2.14094367]
[1723350864889,0.000831,61166.0,61165.0,2.30854367]
[1723350865270,0.000831,61166.0,61165.0,2.13337191]
[1723350865469,0.000831,61166.0,61165.0,2.28053647]
[1723350865668,0.000831,61166.0,61165.0,1.80216545]
[1723350865869,0.000831,61166.0,61165.0,2.31363342]
[1723350866929,0.000831,61166.0,61165.0,2.32363342]
[1723350867134,0.000831,61166.0,61165.0,2.32362982]
[1723350867891,0.000831,61166.0,61165.0,2.24132982]
[1723350868116,0.000831,61166.0,61165.0,2.32362982]
[1723350868335,0.000831,61166.0,61165.0,2.17646888]
[1723350869190,0.000831,61166.0,61165.0,2.17702095]
[1723350870252,0.000831,61166.0,61165.0,2.17502095]
[1723350870481,0.000831,61166.0,61165.0,2.16502095]
[1723350871858,0.000831,61166.0,61165.0,2.02542095]
[1723350872530,0.000831,61166.0,61165.0,1.76493509]
[1723350872751,0.000831,61166.0,61165.0,2.02491909]
[1723350873155,0.000831,61166.0,61165.0,1.78738456]
[1723350873351,0.000831,61166.0,61165.0,2.02491844]
[1723350874476,0.000831,61166.0,61165.0,2.02491815]
[1723350874653,0.000831,61166.0,61165.0,2.14904937]
[1723350874992,0.081431,61166.0,61165.0,2.00191815]
[1723350876356,0.081431,61166.0,61165.0,2.00192943]
[1723350876901,0.144531,61166.0,61165.0,2.00192943]
[1723350877682,0.144531,61166.0,61165.0,1.77304043]
[1723350878232,0.144531,61166.0,61165.0,1.62677444]
[1723350878746,0.144531,61166.0,61165.0,1.52448847]
[1723350878943,0.144531,61166.0,61165.0,1.6226003]
[1723350879575,0.144531,61166.0,61165.0,1.5423003]
[1723350879791,0.144531,61166.0,61165.0,1.54073628]
[1723350880294,0.144531,61166.0,61165.0,1.44262445]
[1723350880489,0.144531,61166.0,61165.0,1.44262462]
[1723350880700,0.144531,61166.0,61165.0,1.42862462]
[1723350880851,0.144531,61166.0,61165.0,1.54073645]
[1723350881260,0.144531,61166.0,61165.0,1.52673645]
[1723350881603,0.144531,61166.0,61165.0,1.54073645]
[1723350881804,0.144531,61166.0,61165.0,1.44262462]
[1723350882009,0.144531,61166.0,61165.0,1.54071477]
[1723350882347,0.144531,61166.0,61165.0,1.42858372]
[1723350882551,0.144531,61166.0,61165.0,1.54094051]
[1723350883195,0.144531,61166.0,61165.0,1.42857959]
[1723350883396,0.144531,61166.0,61165.0,1.5409399]
[1723350883797,0.144531,61166.0,61165.0,1.54093595]
[1723350884380,0.144531,61166.0,61165.0,1.54093317]
[1723350885135,0.144531,61166.0,61165.0,1.3606911]
[1723350885296,0.144531,61166.0,61165.0,1.54096971]
[1723350886805,0.144531,61166.0,61165.0,1.54086528]
[1723350887215,0.144531,61166.0,61165.0,1.54086547]
[1723350888073,0.144531,61166.0,61165.0,1.51634358]
[1723350888222,0.144531,61166.0,61165.0,1.35252805]
[1723350888848,0.144531,61166.0,61165.0,1.18227175]
[1723350889028,0.144531,61166.0,61165.0,1.52165357]
[1723350889234,0.144531,61166.0,61165.0,1.35196266]
[1723350889425,0.144531,61166.0,61165.0,1.32396266]
[1723350889630,0.144531,61166.0,61165.0,1.34996266]
[1723350890296,0.144531,61166.0,61165.0,1.33796266]
[1723350890427,0.144531,61166.0,61165.0,1.27640541]
[1723350890897,0.144531,61166.0,61165.0,0.927111]
[1723350891097,0.144531,61166.0,61165.0,1.27637869]
[1723350891455,0.144531,61166.0,61165.0,1.26237869]
[1723350891659,0.144531,61166.0,61165.0,1.27637869]
[1723350893254,0.144531,61166.0,61165.0,1.15571516]
[1723350894248,0.144531,61166.0,61165.0,1.14371516]
[1723350894477,0.144531,61166.0,61165.0,1.15571516]
[1723350894674,0.144531,61166.0,61165.0,1.14178671]
[1723350894898,0.144531,61166.0,61165.0,1.14378671]
[1723350895111,0.144531,61166.0,61165.0,1.12978671]
[1723350895261,0.144531,61166.0,61165.0,1.12985014]
[1723350895583,0.144531,61166.0,61165.0,1.09482171]
[1723350895785,0.144531,61166.0,61165.0,1.08082171]
[1723350896224,0.144531,61166.0,61165.0,1.15785014]
[1723350896354,0.144531,61166.0,61165.0,1.15776075]
[1723350896561,0.144531,61166.0,61165.0,1.10873232]
[1723350896758,0.144531,61166.0,61165.0,1.09473232]
[1723350897177,0.144531,61166.0,61165.0,1.10873232]
[1723350898428,0.144531,61166.0,61165.0,1.0408545]
[1723350898724,0.144531,61166.0,61165.0,1.10873218]
[1723350900383,0.144531,61166.0,61165.0,1.04084347]
[1723350900608,0.144531,61166.0,61165.0,1.10872164]
[1723350901376,0.144531,61166.0,61165.0,1.10882]
[1723350903529,0.000831,61166.0,61165.0,1.1608042]
[1723350903708,0.000831,61166.0,61165.0,1.57315937]
[1723350904054,0.000831,61166.0,61165.0,1.5976667]
[1723350904256,0.000831,61166.0,61165.0,1.62217403]
[1723350904501,0.000831,61166.0,61165.0,1.52414471]
[1723350904699,0.000831,61166.0,61165.0,1.52558176]
[1723350904874,0.000831,61166.0,61165.0,1.62361108]
[1723350905246,0.000831,61166.0,61165.0,1.62391053]
[1723350905415,0.000831,61166.0,61165.0,1.60991053]
[1723350905620,0.000831,61166.0,61165.0,1.60989125]
[1723350906027,0.000831,61166.0,61165.0,1.59589125]
[1723350906327,0.000831,61166.0,61165.0,1.62389125]
[1723350906556,0.000831,61166.0,61165.0,1.71222525]
[1723350906703,0.000831,61166.0,61165.0,1.74632541]
[1723350906910,0.000831,61166.0,61165.0,1.77432541]
[1723350908159,0.000831,61166.0,61165.0,1.37512707]
[1723350908359,0.000831,61166.0,61165.0,1.77431218]
[1723350909372,0.000831,61166.0,61165.0,1.76031218]
[1723350909517,0.000831,61166.0,61165.0,1.74631218]
[1723350909722,0.000831,61166.0,61165.0,1.76031218]
[1723350910130,0.000831,61166.0,61165.0,1.61420532]
[1723350910561,0.000831,61166.0,61165.0,1.70643919]
[1723350910758,0.000831,61166.0,61165.0,1.77430998]
[1723350911166,0.000831,61166.0,61165.0,1.62820493]
[1723350911397,0.000831,61166.0,61165.0,1.54630493]
[1723350911783,0.000831,61166.0,61165.0,1.53247683]
[1723350911954,0.000831,61166.0,61165.0,1.54647683]
[1723350912344,0.000831,61166.0,61165.0,1.51847683]
[1723350912548,0.000831,61166.0,61165.0,1.53247683]
[1723350912751,0.000831,61166.0,61165.0,1.62000043]
[1723350912976,0.000831,61166.0,61165.0,1.51771442]
[1723350913156,0.000831,61166.0,61165.0,1.50371442]
[1723350913590,0.000831,61166.0,61165.0,1.51771442]
[1723350914151,0.000831,61166.0,61165.0,1.44419082]
[1723350914566,0.000831,61166.0,61165.0,1.44384414]
[1723350914852,0.000831,61166.0,61165.0,1.51737407]
[1723350915104,0.000831,61166.0,61165.0,1.44384414]
[1723350915312,0.000831,61166.0,61165.0,1.37597033]
[1723350915469,0.000831,61166.0,61165.0,1.44384411]
[1723350915864,0.000831,61166.0,61165.0,1.44387136]
[1723350916326,0.000831,61166.0,61165.0,1.44387072]
[1723350916477,0.000831,61166.0,61165.0,1.54191063]
[1723350917120,0.000831,61166.0,61165.0,1.44387072]
[1723350917326,0.148831,61166.0,61165.0,1.44387072]
[1723350917788,0.148831,61166.0,61165.0,1.51742186]
[1723350918545,0.148831,61166.0,61165.0,1.51751619]
[1723350919243,0.148831,61166.0,61165.0,1.51752255]
[1723350919505,0.148831,61166.0,61165.0,1.28015013]
[1723350920289,0.148831,61166.0,61165.0,1.3291946]
[1723350920467,0.148831,61166.0,61165.0,1.28015013]
[1723350922322,0.148831,61166.0,61165.0,1.35371499]
[1723350924932,0.148831,61166.0,61165.0,1.32571499]
[1723350925333,0.148831,61166.0,61165.0,1.27815013]
[1723350925735,0.148831,61166.0,61165.0,1.26615013]
[1723350926149,0.148831,61166.0,61165.0,0.927111]
[1723350926361,0.148831,61166.0,61165.0,1.27805645]
[1723350926764,0.148831,61166.0,61165.0,1.27809022]
[1723350926975,0.15252075,61166.0,61165.0,0.13940603]
[1723350927196,0.23282075,61166.0,61165.0,0.25385003]
[1723350927531,0.23282075,61166.0,61165.0,0.13940603]
[1723350927707,0.23282075,61166.0,61165.0,0.026]
[1723350927708,0.58614775,61166.0,61165.0,0.026]
[1723350928560,0.58614775,61166.0,61165.0,0.012]
[1723350928784,0.1469,61160.0,61157.0,0.1153721]
[1723350928960,0.01368975,61159.0,61158.0,0.11361717]
[1723350929167,0.00368975,61159.0,61157.0,0.0009141]
[1723350929388,0.1469,61158.0,61157.0,0.0009141]
[1723350929718,0.228928,61155.0,61151.0,0.0009141]
[1723350929935,0.02,61160.0,61151.0,0.0009141]
[1723350929936,0.1469,61152.0,61151.0,0.0009141]
[1723350930072,0.15058975,61152.0,61151.0,0.0009141]
[1723350930923,0.16058975,61152.0,61151.0,0.0009141]
[1723350931419,0.27505775,61152.0,61151.0,0.0009141]
[1723350932321,0.15058975,61152.0,61151.0,0.0139141]
[1723350932504,0.27505775,61152.0,61151.0,0.0139141]
[1723350933083,0.27505775,61152.0,61151.0,0.0219141]
[1723350933446,0.27505775,61152.0,61151.0,0.0089141]
[1723350933848,0.50399475,61152.0,61151.0,0.0089141]
[1723350934045,0.50399475,61152.0,61151.0,0.0009141]
[1723350934252,0.27505775,61152.0,61151.0,0.0009141]
[1723350934879,0.27505775,61152.0,61151.0,0.0069141]
[1723350935207,0.27505775,61152.0,61151.0,0.0009141]
[1723350935362,0.27505775,61152.0,61151.0,0.0019141]
[1723350935565,0.26505775,61152.0,61151.0,0.0079141]
[1723350935835,0.27505775,61152.0,61151.0,0.0079141]
[1723350936046,0.26505775,61152.0,61151.0,0.0079141]
[1723350936595,0.26505775,61152.0,61151.0,0.0019141]
[1723350936797,0.26505775,61152.0,61151.0,0.0079141]
[1723350937000,0.15058975,61152.0,61151.0,0.0079141]
[1723350938271,0.15058975,61152.0,61151.0,0.0019141]
[1723350938705,0.15058975,61152.0,61151.0,0.0079141]
[1723350943164,0.26505775,61152.0,61151.0,0.0079141]
[1723350943848,0.15595392,61152.0,61151.0,0.0079141]
[1723350945264,0.50935892,61152.0,61151.0,0.0079141]
[1723350945672,0.73829592,61152.0,61151.0,0.0079141]
[1723350948120,0.92211084,61152.0,61151.0,0.0079141]
[1723350948533,1.15104784,61152.0,61151.0,0.0079141]
[1723350949456,1.15104784,61152.0,61151.0,0.0019141]
[1723350949667,1.15104784,61152.0,61151.0,0.0009141]
[1723350949782,1.15504784,61152.0,61151.0,0.0009141]
[1723350951038,1.85704784,61152.0,61151.0,0.0019141]
[1723350951247,1.15704784,61152.0,61151.0,0.0019141]
[1723350951660,1.15504784,61152.0,61151.0,0.0009141]
[1723350951866,1.15704784,61152.0,61151.0,0.0019141]
[1723350957462,2.02598484,61152.0,61151.0,0.0019141]
[1723350958299,2.19013454,61152.0,61151.0,0.0019141]
[1723350958924,2.02598484,61152.0,61151.0,0.0019141]
[1723350960202,2.11509194,61152.0,61151.0,0.0019141]
[1723350960613,2.11509607,61152.0,61151.0,0.0019141]
[1723350961382,2.11360622,61152.0,61151.0,0.0009141]
[1723350961815,2.11160622,61152.0,61151.0,0.0019141]
[1723350962018,2.27575592,61152.0,61151.0,0.0019141]
[1723350962220,2.27575592,61152.0,61151.0,0.0029141]
[1723350962221,2.28275592,61152.0,61151.0,0.0029141]
[1723350962835,2.11860622,61152.0,61151.0,0.0029141]
[1723350965470,2.11860622,61152.0,61149.0,0.0009141]
[1723350965471,0.01,61150.0,61149.0,0.0009141]
[1723350965686,1.27069805,61150.0,61149.0,0.0009141]
[1723350965829,2.11227551,61150.0,61149.0,0.0009141]
[1723350966024,2.29238058,61150.0,61149.0,0.0009141]
[1723350966230,2.52686266,61150.0,61149.0,0.0009141]
[1723350966432,2.52686266,61150.0,61133.0,0.0009141]
[1723350966433,0.741312,61134.0,61133.0,0.0009141]
[1723350966642,1.22032303,61134.0,61133.0,0.0009141]
[1723350967046,1.96032303,61134.0,61133.0,0.0009141]
[1723350967247,1.96032303,61134.0,61121.0,0.0009141]
[1723350967248,0.831675,61122.0,61121.0,0.0009141]
[1723350967472,1.08168078,61122.0,61121.0,0.0009141]
[1723350967896,1.22048078,61122.0,61121.0,0.0009141]
[1723350968099,0.97058,61114.0,61113.0,0.0009141]
[1723350968304,1.21469492,61114.0,61113.0,0.0009141]
[1723350968544,1.22055622,61114.0,61113.0,0.0009141]
[1723350968752,2.05202571,61114.0,61113.0,0.0009141]
[1723350969137,2.05202571,61114.0,61099.0,0.0009141]
[1723350969138,0.907518,61111.0,61099.0,0.0009141]
[1723350969302,1.81163292,61111.0,61099.0,0.0009141]
[1723350969506,1.81748798,61111.0,61099.0,0.0009141]
[1723350970154,1.15748798,61111.0,61099.0,0.0009141]
[1723350970984,0.92839698,61111.0,61099.0,0.0009141]
[1723350971325,0.93439698,61111.0,61099.0,0.0009141]
[1723350971600,0.95739698,61111.0,61099.0,0.0009141]
[1723350971752,0.96039698,61111.0,61099.0,0.0009141]
[1723350971954,0.52230598,61111.0,61109.0,0.0806]
[1723350972166,0.17866998,61111.0,61109.0,0.0806]
[1723350972532,0.01485506,61111.0,61110.0,0.50700256]
[1723350972738,0.01485506,61111.0,61110.0,0.73609756]
[1723350972929,0.003,61111.0,61110.0,0.73609756]
[1723350973065,0.0803,61118.0,61114.0,0.229078]
[1723350973266,0.00368975,61117.0,61111.0,0.22909]
[1723350973470,0.00949352,61117.0,61113.0,0.114541]
[1723350973814,0.00949352,61117.0,61112.0,0.114543]
[1723350973815,0.12402752,61117.0,61112.0,0.114543]
[1723350974270,0.00949352,61117.0,61113.0,0.114541]
[1723350974398,0.12402752,61117.0,61112.0,0.114542]
[1723350974959,0.12402752,61117.0,61110.0,0.16336056]
[1723350975162,0.11454,61114.0,61110.0,0.0915141]
[1723350975330,0.229072,61116.0,61110.0,0.2060601]
[1723350975331,0.00368975,61113.0,61110.0,0.2060601]
[1723350975528,0.00950943,61113.0,61110.0,0.1960601]
[1723350975849,0.00368975,61113.0,61112.0,0.003]
[1723350976006,0.00368975,61113.0,61112.0,0.114543]
[1723350976206,0.00568975,61117.0,61112.0,0.114543]
[1723350976583,0.001,61114.0,61110.0,0.2020601]
[1723350976784,0.00468975,61114.0,61111.0,0.114545]
[1723350976988,0.00468975,61114.0,61111.0,0.229091]
[1723350977385,0.00468975,61114.0,61111.0,0.114544]
[1723350977835,0.00368975,61116.0,61111.0,0.22909]
[1723350978038,0.00368975,61116.0,61113.0,0.114541]
[1723350978245,0.00368975,61116.0,61114.0,0.114539]
[1723350978377,0.00368975,61116.0,61115.0,0.114538]
[1723350978577,0.00950957,61116.0,61115.0,0.114538]
[1723350978789,0.00950957,61116.0,61113.0,0.11454]
[1723350979311,0.00950957,61116.0,61114.0,0.114539]
[1723350979507,0.00950957,61116.0,61114.0,0.118539]
[1723350979712,0.00368975,61116.0,61114.0,0.114539]
[1723350979911,0.11453,61119.0,61114.0,0.114539]
[1723350979912,0.00368975,61118.0,61114.0,0.114539]
[1723350980290,0.0058201,61117.0,61114.0,0.114539]
[1723350980515,0.00368975,61116.0,61112.0,0.114542]
[1723350980894,0.114539,61115.0,61110.0,0.1960591]
[1723350981105,0.00368975,61114.0,61111.0,0.114545]
[1723350981306,0.00368975,61114.0,61110.0,0.0815141]
[1723350981307,0.00950902,61114.0,61113.0,0.004]
[1723350981509,0.00368975,61114.0,61110.0,0.1960601]
[1723350981708,0.00950902,61114.0,61110.0,0.0815141]
[1723350981919,0.00950902,61114.0,61112.0,0.004]
[1723350981920,0.11822975,61114.0,61112.0,0.004]
[1723350982281,0.00950874,61113.0,61110.0,0.1960611]
[1723350982737,0.00950874,61113.0,61110.0,0.2020611]
[1723350982871,0.00950874,61113.0,61110.0,0.1960611]
[1723350983299,0.00950874,61113.0,61112.0,0.006]
[1723350983580,0.12404974,61113.0,61112.0,0.006]
[1723350983791,0.00950874,61113.0,61112.0,0.006]
[1723350984517,0.35313274,61113.0,61112.0,0.003]
[1723350984726,0.12404974,61113.0,61112.0,0.003]
[1723350984906,0.12504974,61113.0,61112.0,0.003]
[1723350985151,0.12404974,61113.0,61112.0,0.003]
[1723350985359,0.35313274,61113.0,61112.0,0.003]
[1723350985607,0.35413274,61113.0,61112.0,0.01]
[1723350985811,0.12404974,61113.0,61111.0,0.0009152]
[1723350986161,0.114543,61112.0,61111.0,0.0009152]
[1723350986487,0.12038216,61112.0,61111.0,0.0009152]
[1723350987108,0.12038216,61112.0,61111.0,0.0039152]
[1723350987725,0.12407191,61112.0,61111.0,0.0009152]
[1723350988049,0.12407191,61112.0,61111.0,0.0079152]
[1723350988296,0.35315891,61112.0,61111.0,0.0009152]
[1723350988702,0.35415891,61112.0,61111.0,0.0089152]
[1723350989118,0.35415891,61112.0,61111.0,0.0129152]
[1723350989521,0.12507191,61112.0,61111.0,0.0129152]
[1723350989677,0.35415891,61112.0,61111.0,0.0129152]
[1723350990076,0.12507191,61112.0,61111.0,0.0129152]
[1723350994830,0.01052891,61112.0,61111.0,0.0129152]
[1723350995511,0.00683916,61112.0,61111.0,0.4378512]
[1723350995903,0.001,61112.0,61111.0,0.4378512]
[1723350997325,0.001,61112.0,61111.0,0.2087602]
[1723350997837,0.00683089,61112.0,61111.0,0.2087602]
[1723351000212,0.001,61112.0,61111.0,0.2087602]
[1723351002854,0.001,61112.0,61111.0,0.32190387]
[1723351004125,0.00683089,61112.0,61111.0,0.32190387]
[1723351004254,0.00683089,61112.0,61111.0,0.32174188]
[1723351007487,0.00683089,61112.0,61111.0,0.20719688]
[1723351007916,0.00683089,61112.0,61111.0,0.0942152]
[1723351008155,0.00683089,61112.0,61111.0,0.12577644]
[1723351009233,0.00683089,61112.0,61111.0,0.0129152]
[1723351009390,0.00683089,61112.0,61111.0,0.12569262]
[1723351011692,0.00683089,61112.0,61111.0,0.12568672]
[1723351012136,0.00683089,61112.0,61111.0,0.0129152]
[1723351012336,0.00683089,61112.0,61111.0,0.12570041]
[1723351012536,0.12137389,61112.0,61111.0,0.12570041]
[1723351012738,0.12137389,61112.0,61111.0,0.0129152]
[1723351012912,0.12506364,61112.0,61111.0,0.0129152]
[1723351014605,0.20046364,61112.0,61111.0,0.0129152]
[1723351016747,0.42955064,61112.0,61111.0,0.0129152]
[1723351016950,0.20046364,61112.0,61111.0,0.0129152]
[1723351017154,0.66863764,61112.0,61111.0,0.0129152]
[1723351017353,0.89885256,61112.0,61111.0,0.0129152]
[1723351017606,0.94777299,61112.0,61111.0,0.0129152]
[1723351018315,0.88885256,61112.0,61111.0,0.0129152]
[1723351018521,0.93780081,61112.0,61111.0,0.0129152]
[1723351018817,0.70871381,61112.0,61111.0,0.0129152]
[1723351019224,0.65976556,61112.0,61111.0,0.0129152]
[1723351019529,0.88885256,61112.0,61111.0,0.0129152]
[1723351019931,0.93779752,61112.0,61111.0,0.0129152]
[1723351020302,0.70871052,61112.0,61111.0,0.0129152]
[1723351021792,0.708696,61112.0,61111.0,0.0129152]
[1723351022036,0.65976556,61112.0,61111.0,0.0129152]
[1723351022189,0.91885256,61112.0,61111.0,0.0129152]
[1723351022388,0.967783,61112.0,61111.0,0.0129152]
[1723351023737,0.99223184,61112.0,61111.0,0.0129152]
[1723351023938,0.91885256,61112.0,61111.0,0.0129152]
[1723351024462,1.14793956,61112.0,61111.0,0.0129152]
[1723351024729,1.01671344,61112.0,61111.0,0.0129152]
[1723351024944,1.01666583,61112.0,61111.0,0.0129152]
[1723351025065,1.04117866,61112.0,61111.0,0.0129152]
[1723351025270,0.91885256,61112.0,61111.0,0.0129152]
[1723351025974,1.80793956,61112.0,61111.0,0.0129152]
[1723351026152,1.83093956,61112.0,61111.0,0.0129152]
[1723351026460,1.95318453,61112.0,61111.0,0.0089152]
[1723351026719,1.95518453,61112.0,61111.0,0.0089152]
[1723351027037,1.95316196,61112.0,61111.0,0.0089152]
[1723351027239,1.95216196,61112.0,61111.0,0.0009152]
[1723351027458,1.96016196,61112.0,61111.0,0.0049152]
[1723351027884,1.96016196,61112.0,61111.0,0.0019152]
[1723351028061,1.96416196,61112.0,61111.0,0.0019152]
[1723351029242,1.73507496,61112.0,61111.0,0.0019152]
[1723351029925,1.96416196,61112.0,61111.0,0.0019152]
[1723351030084,1.84193956,61112.0,61111.0,0.0019152]
[1723351032413,1.69060596,61112.0,61111.0,0.0019152]
[1723351032612,1.00391621,61112.0,61111.0,0.0019152]
[1723351032899,0.90616281,61112.0,61111.0,0.0019152]
[1723351033802,0.97947425,61112.0,61111.0,0.0019152]
[1723351034034,0.90616281,61112.0,61111.0,0.0019152]
[1723351034210,0.95504085,61112.0,61111.0,0.0019152]
[1723351034367,0.53527581,61112.0,61111.0,0.0019152]
[1723351034770,0.76436281,61112.0,61111.0,0.0019152]
[1723351036292,0.75636281,61112.0,61111.0,0.0009152]
[1723351036492,0.76436281,61112.0,61111.0,0.0019152]
[1723351036675,0.76036281,61112.0,61111.0,0.0019152]
[1723351037073,0.75536281,61112.0,61111.0,0.0009152]
[1723351037656,0.75836281,61112.0,61111.0,0.0019152]
[1723351037846,0.76036281,61112.0,61111.0,0.0019152]
[1723351039404,0.75436281,61112.0,61111.0,0.0009152]
[1723351039628,0.75936281,61112.0,61111.0,0.0009152]
[1723351039826,0.75736281,61112.0,61111.0,0.0009152]
[1723351040168,0.75836281,61112.0,61111.0,0.0009152]
[1723351042367,0.75336281,61112.0,61111.0,0.0009152]
[1723351042563,0.75736281,61112.0,61111.0,0.0009152]
[1723351043116,0.75236281,61112.0,61111.0,0.0009152]
[1723351043598,0.75536281,61112.0,61111.0,0.0009152]
[1723351043943,0.75536281,61112.0,61111.0,0.0029152]
[1723351045846,0.83836281,61112.0,61111.0,0.0029152]
[1723351052477,0.90724466,61112.0,61111.0,0.0029152]
[1723351052915,1.26911351,61112.0,61111.0,0.0029152]
[1723351053131,2.02195773,61112.0,61111.0,0.0029152]
[1723351053493,2.16860328,61112.0,61111.0,0.0029152]
[1723351053698,2.16860328,61112.0,61111.0,0.0009152]
[1723351054118,2.17359193,61112.0,61111.0,0.0019152]
[1723351054319,2.26312593,61112.0,61111.0,0.0009152]
[1723351054521,2.16951801,61112.0,61111.0,0.0009152]
[1723351054751,2.26489188,61112.0,61111.0,0.0019152]
[1723351054993,2.27389188,61112.0,61111.0,0.0029152]
[1723351055181,2.27389257,61112.0,61111.0,0.0029152]
[1723351055330,2.27389257,61112.0,61111.0,0.0019152]
[1723351055331,2.59397957,61112.0,61111.0,0.0019152]
[1723351055634,0.373698,61100.0,61099.0,0.0009141]
[1723351055860,1.62094492,61100.0,61099.0,0.0009141]
[1723351056010,2.00103771,61100.0,61099.0,0.0009141]
[1723351056221,1.96930503,61100.0,61099.0,0.0009141]
[1723351056417,2.00103771,61100.0,61099.0,0.0009141]
[1723351057033,2.09146765,61100.0,61099.0,0.0009141]
[1723351057243,2.09137163,61100.0,61099.0,0.0009141]
[1723351057448,2.00094169,61100.0,61099.0,0.0009141]
[1723351057690,2.00094169,61100.0,61099.0,0.0029141]
[1723351057904,2.00094169,61100.0,61099.0,0.0009141]
[1723351058156,2.00594169,61100.0,61099.0,0.0009141]
[1723351058344,1.88786123,61100.0,61099.0,0.0009141]
[1723351058577,1.88286123,61100.0,61099.0,0.0009141]
[1723351058945,1.88986123,61100.0,61099.0,0.0009141]
[1723351059348,1.98747337,61100.0,61099.0,0.0009141]
[1723351059551,2.02441565,61100.0,61099.0,0.0009141]
[1723351060530,1.98747337,61100.0,61099.0,0.0009141]
[1723351061328,1.88986123,61100.0,61099.0,0.0009141]
[1723351061953,1.89944049,61100.0,61099.0,0.0009141]
[1723351062407,1.97260878,61100.0,61099.0,0.0009141]
[1723351063187,1.97261141,61100.0,61099.0,0.0009141]
[1723351064332,2.06359019,61100.0,61099.0,0.0009141]
[1723351064541,1.89944049,61100.0,61099.0,0.0009141]
[1723351065538,1.94821024,61100.0,61099.0,0.0009141]
[1723351066035,1.95736224,61100.0,61099.0,0.0009141]
[1723351066464,1.94821024,61100.0,61099.0,0.0009141]
[1723351066611,1.95736224,61100.0,61099.0,0.0009141]
[1723351067620,1.90859249,61100.0,61099.0,0.0009141]
[1723351067824,1.95735195,61100.0,61099.0,0.0009141]
[1723351070546,2.35063365,61100.0,61099.0,0.0009141]
[1723351070744,2.30187419,61100.0,61099.0,0.0009141]
[1723351070994,2.37501338,61100.0,61099.0,0.0009141]
[1723351071364,2.13772449,61100.0,61099.0,0.0009141]
[1723351071569,2.23772449,61100.0,61099.0,0.0009141]
[1723351071767,2.31083175,61100.0,61099.0,0.0009141]
[1723351071967,2.23772449,61100.0,61099.0,0.0009141]
[1723351073428,2.40081896,61100.0,61099.0,0.0009141]
[1723351073641,2.49187683,61100.0,61099.0,0.0009141]
[1723351074917,2.564963,61100.0,61099.0,0.0009141]
[1723351075528,2.56496388,61100.0,61099.0,0.0009141]
[1723351075750,2.32772713,61100.0,61099.0,0.0009141]
[1723351076237,2.32772713,61100.0,61095.0,0.009152]
[1723351076238,1.061161,61096.0,61095.0,0.009152]
[1723351076377,2.38843886,61096.0,61095.0,0.009152]
[1723351076581,2.41279446,61096.0,61095.0,0.009152]
[1723351076783,2.41279374,61096.0,61095.0,0.009152]
[1723351077007,2.41279699,61096.0,61095.0,0.009152]
[1723351077795,2.41479699,61096.0,61095.0,0.009152]
[1723351078193,2.42079699,61096.0,61095.0,0.009152]
[1723351078395,2.29901576,61096.0,61095.0,0.009152]
[1723351078905,2.39640351,61096.0,61095.0,0.009152]
[1723351079479,2.29901576,61096.0,61095.0,0.009152]
[1723351079689,2.34770569,61096.0,61095.0,0.009152]
[1723351079878,2.10477769,61096.0,61095.0,0.009152]
[1723351080070,2.06637592,61096.0,61095.0,0.009152]
[1723351080355,2.15661708,61096.0,61095.0,0.009152]